[Event "Titled Tuesday Blitz May 9 Early 2023"]
[White "Maluco_do_Natal_00"]
[Black "Shvedova, Alexandra"]
[BlackFideId "54154782"]
[WhiteElo "2024"]
[BlackElo "1973"]
[Result "0-1"]
[Round "01"]
[TimeControl "180+2"]
[Date "2023.05.09"]
[WhiteClock "0:00:00"]
[BlackClock "0:01:26"]

1. e4 {[%clk 0:02:56]}  c6 {[%clk 0:02:59]} 2. d4 {[%clk 0:02:54]}  d5 {[%clk 0:03:00]} 3. Nc3 {[%clk 0:02:52]}  dxe4 {[%clk 0:03:00]} 4. Nxe4 {[%clk 0:02:53]}  Nf6 {[%clk 0:03:00]} 5. Nxf6+ {[%clk 0:02:53]}  exf6 {[%clk 0:03:01]} 6. c3 {[%clk 0:02:53]}  Bd6 {[%clk 0:03:01]} 7. Qc2 {[%clk 0:02:53]}  O-O {[%clk 0:03:01]} 8. Bd3 {[%clk 0:02:54]}  h6 {[%clk 0:03:00]} 9. Ne2 {[%clk 0:02:43]}  Qc7 {[%clk 0:03:00]} 10. Be3 {[%clk 0:02:35]}  Nd7 {[%clk 0:02:59]} 11. O-O-O {[%clk 0:02:25]}  Nb6 {[%clk 0:02:55]} 12. c4 {[%clk 0:02:22]}  c5 {[%clk 0:02:43]} 13. d5 {[%clk 0:02:07]}  Nd7 {[%clk 0:02:43]} 14. f4 {[%clk 0:01:44]}  a6 {[%clk 0:02:42]} 15. Kb1 {[%clk 0:01:20]}  Re8 {[%clk 0:02:28]} 16. Qd2 {[%clk 0:01:19]}  b5 {[%clk 0:02:17]} 17. Rhe1 {[%clk 0:01:01]}  bxc4 {[%clk 0:02:16]} 18. Bxc4 {[%clk 0:01:01]}  Nb6 {[%clk 0:02:17]} 19. Bb3 {[%clk 0:00:46]}  c4 {[%clk 0:02:16]} 20. Bxb6 {[%clk 0:00:45]}  Qxb6 {[%clk 0:02:15]} 21. Bxc4 {[%clk 0:00:42]}  Bf5+ {[%clk 0:02:03]} 22. Ka1 {[%clk 0:00:30]}  Rab8 {[%clk 0:02:02]} 23. Bb3 {[%clk 0:00:21]}  a5 {[%clk 0:01:58]} 24. Nc3 {[%clk 0:00:19]}  Rec8 {[%clk 0:01:57]} 25. Qd4 {[%clk 0:00:13]}  Bc5 {[%clk 0:01:52]} 26. Qa4 {[%clk 0:00:11]}  Bb4 {[%clk 0:01:48]} 27. Rc1 {[%clk 0:00:09]}  Qd4 {[%clk 0:01:37]} 28. Red1 {[%clk 0:00:08]}  Qxf4 {[%clk 0:01:35]} 29. g3 {[%clk 0:00:06]}  Qe3 {[%clk 0:01:33]} 30. d6 {[%clk 0:00:06]}  Bxc3 {[%clk 0:01:30]} 31. bxc3 {[%clk 0:00:04]}  Rxc3 {[%clk 0:01:30]} 32. Qd4 {[%clk 0:00:03]}  Rxc1+ {[%clk 0:01:29]} 33. Kb2 {[%clk 0:00:03]}  Qxd4+ {[%clk 0:01:26]} 34. Rxd4 {[%clk 0:00:03]}  Rcc8 {[%clk 0:01:26]} 35. d7 {[%clk 0:00:00]}  Rd8 {[%clk 0:01:26]} 0-1


[Site "https://www.chess.com"]

[Event "Titled Tuesday Blitz May 9 Early 2023"]
[White "Panico, Nick"]
[Black "Perera Alfonso, Rene Humberto"]
[WhiteFideId "2026724"]
[BlackFideId "3514722"]
[WhiteElo "1982"]
[BlackElo "2313"]
[Result "0-1"]
[Round "01"]
[TimeControl "180+2"]
[Date "2023.05.09"]
[WhiteClock "0:01:03"]
[BlackClock "0:02:02"]

1. d4 {[%clk 0:03:00]}  d5 {[%clk 0:02:58]} 2. Bf4 {[%clk 0:03:00]}  Nf6 {[%clk 0:02:58]} 3. e3 {[%clk 0:03:00]}  c5 {[%clk 0:02:58]} 4. Nf3 {[%clk 0:02:57]}  Nc6 {[%clk 0:02:58]} 5. Nbd2 {[%clk 0:02:57]}  e6 {[%clk 0:02:58]} 6. c3 {[%clk 0:02:53]}  Bd6 {[%clk 0:02:58]} 7. Bg3 {[%clk 0:02:54]}  Qe7 {[%clk 0:02:57]} 8. Ne5 {[%clk 0:02:51]}  Bxe5 {[%clk 0:02:55]} 9. dxe5 {[%clk 0:02:50]}  Nd7 {[%clk 0:02:56]} 10. Nf3 {[%clk 0:02:47]}  O-O {[%clk 0:02:54]} 11. Bd3 {[%clk 0:02:46]}  f6 {[%clk 0:02:54]} 12. exf6 {[%clk 0:02:42]}  Nxf6 {[%clk 0:02:55]} 13. Ne5 {[%clk 0:02:25]}  Bd7 {[%clk 0:02:51]} 14. O-O {[%clk 0:02:25]}  Be8 {[%clk 0:02:51]} 15. Bc2 {[%clk 0:02:22]}  Bh5 {[%clk 0:02:48]} 16. Qd2 {[%clk 0:02:14]}  Rad8 {[%clk 0:02:45]} 17. Nxc6 {[%clk 0:02:06]}  bxc6 {[%clk 0:02:46]} 18. f3 {[%clk 0:02:00]}  e5 {[%clk 0:02:44]} 19. Qd3 {[%clk 0:01:53]}  Bg6 {[%clk 0:02:42]} 20. Qd2 {[%clk 0:01:53]}  Bh5 {[%clk 0:02:38]} 21. Qd3 {[%clk 0:01:54]}  c4 {[%clk 0:02:37]} 22. Qe2 {[%clk 0:01:50]}  c5 {[%clk 0:02:37]} 23. Rad1 {[%clk 0:01:50]}  Rfe8 {[%clk 0:02:36]} 24. Qf2 {[%clk 0:01:49]}  Qb7 {[%clk 0:02:35]} 25. Rfe1 {[%clk 0:01:48]}  Kh8 {[%clk 0:02:33]} 26. Bb1 {[%clk 0:01:46]}  a5 {[%clk 0:02:19]} 27. Bh4 {[%clk 0:01:46]}  Qf7 {[%clk 0:02:17]} 28. g4 {[%clk 0:01:45]}  Bg6 {[%clk 0:02:16]} 29. Bxg6 {[%clk 0:01:42]}  Qxg6 {[%clk 0:02:16]} 30. Bg3 {[%clk 0:01:42]}  h5 {[%clk 0:02:15]} 31. h3 {[%clk 0:01:42]}  Rd7 {[%clk 0:02:14]} 32. Kg2 {[%clk 0:01:42]}  Rf7 {[%clk 0:02:13]} 33. Bh4 {[%clk 0:01:38]}  hxg4 {[%clk 0:02:12]} 34. hxg4 {[%clk 0:01:38]}  Kg8 {[%clk 0:02:06]} 35. Bxf6 {[%clk 0:01:37]}  Rxf6 {[%clk 0:02:06]} 36. Rxd5 {[%clk 0:01:35]}  e4 {[%clk 0:02:07]} 37. Qh4 {[%clk 0:01:11]}  exf3+ {[%clk 0:02:05]} 38. Kg3 {[%clk 0:01:07]}  f2 {[%clk 0:02:03]} 39. Rf1 {[%clk 0:01:06]}  Rxe3+ {[%clk 0:02:02]} 40. Kg2 {[%clk 0:01:06]}  Qe4+ {[%clk 0:02:02]} 41. Kh2 {[%clk 0:01:03]}  Qxd5 {[%clk 0:02:02]} 0-1


[Site "https://www.chess.com"]

[Event "Titled Tuesday Blitz May 9 Early 2023"]
[White "Jaracz, Pawel"]
[Black "Andreikin, Dmitry"]
[WhiteFideId "1102222"]
[BlackFideId "4158814"]
[WhiteElo "2438"]
[BlackElo "2736"]
[Result "0-1"]
[Round "02"]
[TimeControl "180+2"]
[Date "2023.05.09"]
[WhiteClock "0:01:45"]
[BlackClock "0:01:08"]

1. e4 {[%clk 0:03:00]}  c5 {[%clk 0:02:59]} 2. Nf3 {[%clk 0:03:01]}  e6 {[%clk 0:02:58]} 3. d4 {[%clk 0:03:01]}  cxd4 {[%clk 0:02:59]} 4. Nxd4 {[%clk 0:03:01]}  Nc6 {[%clk 0:02:59]} 5. Nc3 {[%clk 0:03:01]}  Qc7 {[%clk 0:02:59]} 6. Be3 {[%clk 0:03:00]}  a6 {[%clk 0:02:54]} 7. Qd2 {[%clk 0:02:58]}  Nf6 {[%clk 0:02:48]} 8. O-O-O {[%clk 0:02:58]}  Be7 {[%clk 0:02:42]} 9. f3 {[%clk 0:02:57]}  b5 {[%clk 0:02:41]} 10. Nxc6 {[%clk 0:02:56]}  dxc6 {[%clk 0:02:39]} 11. g4 {[%clk 0:02:47]}  e5 {[%clk 0:02:38]} 12. Qf2 {[%clk 0:02:39]}  Be6 {[%clk 0:02:33]} 13. h4 {[%clk 0:02:22]}  Nd7 {[%clk 0:02:29]} 14. g5 {[%clk 0:02:21]}  Qa5 {[%clk 0:02:11]} 15. Bh3 {[%clk 0:02:08]}  Bxh3 {[%clk 0:02:05]} 16. Rxh3 {[%clk 0:02:09]}  b4 {[%clk 0:01:54]} 17. Rxd7 {[%clk 0:02:07]}  bxc3 {[%clk 0:01:54]} 18. Bb6 {[%clk 0:02:07]}  Qb4 {[%clk 0:01:13]} 19. Rxe7+ {[%clk 0:02:05]}  Qxe7 {[%clk 0:01:13]} 20. Bc5 {[%clk 0:02:01]}  Qe6 {[%clk 0:01:13]} 21. Qh2 {[%clk 0:01:45]}  O-O-O {[%clk 0:01:08]} 0-1


[Site "https://www.chess.com"]

[Event "Titled Tuesday Blitz May 9 Early 2023"]
[White "Bluebaum, Matthias"]
[Black "Weishaeutel, Moritz"]
[WhiteFideId "24651516"]
[BlackFideId "12967300"]
[WhiteElo "2639"]
[BlackElo "2301"]
[Result "1-0"]
[Round "02"]
[TimeControl "180+2"]
[Date "2023.05.09"]
[WhiteClock "0:00:35"]
[BlackClock "0:00:00"]

1. d4 {[%clk 0:03:00]}  Nf6 {[%clk 0:03:00]} 2. c4 {[%clk 0:03:01]}  c5 {[%clk 0:03:00]} 3. d5 {[%clk 0:03:01]}  b5 {[%clk 0:03:01]} 4. cxb5 {[%clk 0:03:02]}  a6 {[%clk 0:03:01]} 5. bxa6 {[%clk 0:03:03]}  g6 {[%clk 0:03:02]} 6. Nc3 {[%clk 0:03:03]}  Bg7 {[%clk 0:03:02]} 7. a7 {[%clk 0:03:04]}  Rxa7 {[%clk 0:03:02]} 8. e4 {[%clk 0:03:04]}  e6 {[%clk 0:03:02]} 9. Nf3 {[%clk 0:03:05]}  exd5 {[%clk 0:03:03]} 10. exd5 {[%clk 0:03:05]}  d6 {[%clk 0:03:03]} 11. Be2 {[%clk 0:03:05]}  O-O {[%clk 0:03:03]} 12. O-O {[%clk 0:03:06]}  Na6 {[%clk 0:03:03]} 13. Nb5 {[%clk 0:03:06]}  Rd7 {[%clk 0:03:03]} 14. Bc4 {[%clk 0:03:07]}  Bb7 {[%clk 0:03:03]} 15. Qb3 {[%clk 0:03:04]}  Qa8 {[%clk 0:02:47]} 16. Rd1 {[%clk 0:03:03]}  Nb4 {[%clk 0:02:39]} 17. Nc3 {[%clk 0:03:01]}  Ba6 {[%clk 0:02:31]} 18. a3 {[%clk 0:02:46]}  Bxc4 {[%clk 0:02:10]} 19. Qxc4 {[%clk 0:02:47]}  Qa6 {[%clk 0:01:33]} 20. Qb3 {[%clk 0:02:20]}  Nd3 {[%clk 0:01:24]} 21. Nb5 {[%clk 0:02:20]}  Nxc1 {[%clk 0:01:21]} 22. Raxc1 {[%clk 0:02:21]}  Rb7 {[%clk 0:01:01]} 23. a4 {[%clk 0:02:21]}  Ra8 {[%clk 0:01:00]} 24. Rc4 {[%clk 0:01:36]}  Ne8 {[%clk 0:00:56]} 25. Qc2 {[%clk 0:01:29]}  Nc7 {[%clk 0:00:54]} 26. Nxc7 {[%clk 0:01:25]}  Rxc7 {[%clk 0:00:55]} 27. b3 {[%clk 0:01:26]}  Rb7 {[%clk 0:00:53]} 28. h3 {[%clk 0:01:26]}  Rab8 {[%clk 0:00:53]} 29. Rd3 {[%clk 0:01:26]}  Rb6 {[%clk 0:00:48]} 30. Re4 {[%clk 0:01:24]}  Qb7 {[%clk 0:00:47]} 31. Nd2 {[%clk 0:01:24]}  Rb4 {[%clk 0:00:38]} 32. Nc4 {[%clk 0:01:08]}  Rxb3 {[%clk 0:00:10]} 33. Rxb3 {[%clk 0:01:09]}  Qxb3 {[%clk 0:00:11]} 34. Re8+ {[%clk 0:01:10]}  Bf8 {[%clk 0:00:09]} 35. Qxb3 {[%clk 0:01:10]}  Rxb3 {[%clk 0:00:09]} 36. a5 {[%clk 0:01:11]}  Rb4 {[%clk 0:00:06]} 37. Nb6 {[%clk 0:01:04]}  Rb5 {[%clk 0:00:05]} 38. Nd7 {[%clk 0:01:04]}  Rxa5 {[%clk 0:00:03]} 39. Rxf8+ {[%clk 0:01:02]}  Kg7 {[%clk 0:00:04]} 40. Rc8 {[%clk 0:01:03]}  c4 {[%clk 0:00:02]} 41. Nb6 {[%clk 0:01:01]}  Rb5 {[%clk 0:00:03]} 42. Nxc4 {[%clk 0:00:59]}  Rxd5 {[%clk 0:00:04]} 43. g3 {[%clk 0:00:58]}  Rd1+ {[%clk 0:00:04]} 44. Kg2 {[%clk 0:00:59]}  d5 {[%clk 0:00:05]} 45. Rd8 {[%clk 0:00:59]}  d4 {[%clk 0:00:02]} 46. Ne5 {[%clk 0:00:55]}  Re1 {[%clk 0:00:02]} 47. Nf3 {[%clk 0:00:55]}  Re7 {[%clk 0:00:01]} 48. Rxd4 {[%clk 0:00:55]}  Ra7 {[%clk 0:00:02]} 49. Rd6 {[%clk 0:00:56]}  h6 {[%clk 0:00:02]} 50. Rb6 {[%clk 0:00:56]}  Re7 {[%clk 0:00:03]} 51. h4 {[%clk 0:00:56]}  h5 {[%clk 0:00:03]} 52. Ng5 {[%clk 0:00:57]}  Rd7 {[%clk 0:00:03]} 53. Kf3 {[%clk 0:00:55]}  Re7 {[%clk 0:00:04]} 54. Rb4 {[%clk 0:00:55]}  Rd7 {[%clk 0:00:04]} 55. Rf4 {[%clk 0:00:54]}  Ra7 {[%clk 0:00:03]} 56. Rxf7+ {[%clk 0:00:51]}  Rxf7+ {[%clk 0:00:03]} 57. Nxf7 {[%clk 0:00:52]}  Kxf7 {[%clk 0:00:04]} 58. Kf4 {[%clk 0:00:53]}  Kf6 {[%clk 0:00:04]} 59. f3 {[%clk 0:00:53]}  g5+ {[%clk 0:00:01]} 60. hxg5+ {[%clk 0:00:33]}  Kg6 {[%clk 0:00:02]} 61. g4 {[%clk 0:00:34]}  h4 {[%clk 0:00:02]} 62. Ke3 {[%clk 0:00:34]}  Kxg5 {[%clk 0:00:00]} 63. Kf2 {[%clk 0:00:35]} 1-0


[Site "https://www.chess.com"]

[Event "Titled Tuesday Blitz May 9 Early 2023"]
[White "Tang, Andrew"]
[Black "Veiga, Jose Francisco R P Neves"]
[WhiteFideId "2059630"]
[BlackFideId "1930087"]
[WhiteElo "2596"]
[BlackElo "2320"]
[Result "1-0"]
[Round "02"]
[TimeControl "180+2"]
[Date "2023.05.09"]
[WhiteClock "0:00:13"]
[BlackClock "0:00:13"]

1. d4 {[%clk 0:02:57]}  e6 {[%clk 0:02:56]} 2. Bf4 {[%clk 0:02:51]}  c5 {[%clk 0:02:55]} 3. e3 {[%clk 0:02:52]}  Nf6 {[%clk 0:02:53]} 4. Nf3 {[%clk 0:02:46]}  b6 {[%clk 0:02:53]} 5. Nc3 {[%clk 0:02:46]}  a6 {[%clk 0:02:50]} 6. d5 {[%clk 0:02:45]}  Bb7 {[%clk 0:02:29]} 7. e4 {[%clk 0:02:42]}  exd5 {[%clk 0:02:28]} 8. exd5 {[%clk 0:02:43]}  d6 {[%clk 0:02:28]} 9. a4 {[%clk 0:02:02]}  Be7 {[%clk 0:02:24]} 10. Bc4 {[%clk 0:01:59]}  O-O {[%clk 0:02:25]} 11. O-O {[%clk 0:01:59]}  Nbd7 {[%clk 0:02:22]} 12. h3 {[%clk 0:01:59]}  Re8 {[%clk 0:02:19]} 13. Re1 {[%clk 0:01:56]}  Qc7 {[%clk 0:02:17]} 14. Qd3 {[%clk 0:01:56]}  Bf8 {[%clk 0:02:17]} 15. Rxe8 {[%clk 0:01:55]}  Nxe8 {[%clk 0:02:16]} 16. Re1 {[%clk 0:01:42]}  Nef6 {[%clk 0:02:07]} 17. g4 {[%clk 0:01:42]}  g6 {[%clk 0:02:05]} 18. g5 {[%clk 0:01:38]}  Nh5 {[%clk 0:02:04]} 19. Bh2 {[%clk 0:01:39]}  Bg7 {[%clk 0:01:53]} 20. h4 {[%clk 0:01:00]}  Ne5 {[%clk 0:01:20]} 21. Nxe5 {[%clk 0:00:54]}  Bxe5 {[%clk 0:01:18]} 22. Qf3 {[%clk 0:00:49]}  Re8 {[%clk 0:01:12]} 23. Re3 {[%clk 0:00:41]}  Bxh2+ {[%clk 0:00:46]} 24. Kxh2 {[%clk 0:00:39]}  Rxe3 {[%clk 0:00:46]} 25. Qxe3 {[%clk 0:00:19]}  Qd7 {[%clk 0:00:46]} 26. Be2 {[%clk 0:00:18]}  Ng7 {[%clk 0:00:35]} 27. Ne4 {[%clk 0:00:18]}  Kh8 {[%clk 0:00:25]} 28. Nf6 {[%clk 0:00:15]}  Qf5 {[%clk 0:00:20]} 29. f4 {[%clk 0:00:16]}  Qxc2 {[%clk 0:00:19]} 30. Qe7 {[%clk 0:00:14]}  Ne6 {[%clk 0:00:13]} 31. Qe8+ {[%clk 0:00:13]} 1-0


[Site "https://www.chess.com"]

[Event "Titled Tuesday Blitz May 9 Early 2023"]
[White "Wadsworth, Matthew J"]
[Black "Bok, Benjamin"]
[WhiteFideId "415804"]
[BlackFideId "1017063"]
[WhiteElo "2347"]
[BlackElo "2657"]
[Result "1/2-1/2"]
[Round "02"]
[TimeControl "180+2"]
[Date "2023.05.09"]
[WhiteClock "0:00:09"]
[BlackClock "0:00:03"]

1. Nf3 {[%clk 0:03:00]}  d5 {[%clk 0:02:59]} 2. g3 {[%clk 0:03:01]}  c6 {[%clk 0:02:55]} 3. Bg2 {[%clk 0:03:00]}  Bg4 {[%clk 0:02:55]} 4. c4 {[%clk 0:02:59]}  e6 {[%clk 0:02:51]} 5. cxd5 {[%clk 0:02:59]}  exd5 {[%clk 0:02:50]} 6. d3 {[%clk 0:02:56]}  Nf6 {[%clk 0:02:47]} 7. h3 {[%clk 0:02:56]}  Bh5 {[%clk 0:02:46]} 8. O-O {[%clk 0:02:54]}  Be7 {[%clk 0:02:43]} 9. Nc3 {[%clk 0:02:50]}  O-O {[%clk 0:02:42]} 10. e4 {[%clk 0:02:45]}  Na6 {[%clk 0:02:39]} 11. g4 {[%clk 0:02:20]}  Bg6 {[%clk 0:02:38]} 12. Ne5 {[%clk 0:02:05]}  dxe4 {[%clk 0:02:07]} 13. dxe4 {[%clk 0:02:03]}  Nc5 {[%clk 0:02:07]} 14. Nxg6 {[%clk 0:02:02]}  hxg6 {[%clk 0:02:08]} 15. e5 {[%clk 0:02:00]}  Nfd7 {[%clk 0:02:01]} 16. f4 {[%clk 0:01:51]}  g5 {[%clk 0:01:55]} 17. b4 {[%clk 0:01:30]}  Ne6 {[%clk 0:01:51]} 18. f5 {[%clk 0:01:26]}  Nf4 {[%clk 0:01:43]} 19. Bxf4 {[%clk 0:01:19]}  gxf4 {[%clk 0:01:44]} 20. Qd4 {[%clk 0:01:07]}  Qb6 {[%clk 0:01:34]} 21. Qxb6 {[%clk 0:00:49]}  axb6 {[%clk 0:01:35]} 22. Rxf4 {[%clk 0:00:40]}  Nxe5 {[%clk 0:01:35]} 23. b5 {[%clk 0:00:36]}  Ra3 {[%clk 0:01:24]} 24. bxc6 {[%clk 0:00:22]}  bxc6 {[%clk 0:01:02]} 25. Ne4 {[%clk 0:00:21]}  f6 {[%clk 0:00:59]} 26. Rf2 {[%clk 0:00:15]}  Rfa8 {[%clk 0:00:54]} 27. g5 {[%clk 0:00:12]}  R8a4 {[%clk 0:00:29]} 28. g6 {[%clk 0:00:11]}  Kf8 {[%clk 0:00:24]} 29. Re2 {[%clk 0:00:10]}  Nf3+ {[%clk 0:00:20]} 30. Bxf3 {[%clk 0:00:10]}  Rxf3 {[%clk 0:00:21]} 31. Rf1 {[%clk 0:00:08]}  Rxh3 {[%clk 0:00:17]} 32. Rfe1 {[%clk 0:00:08]}  Ra7 {[%clk 0:00:11]} 33. Nd6 {[%clk 0:00:08]}  Rg3+ {[%clk 0:00:08]} 34. Kh2 {[%clk 0:00:06]}  Rg5 {[%clk 0:00:08]} 35. Nc8 {[%clk 0:00:06]}  Rc7 {[%clk 0:00:02]} 36. Nxe7 {[%clk 0:00:06]}  Rd7 {[%clk 0:00:01]} 37. Re6 {[%clk 0:00:06]}  c5 {[%clk 0:00:01]} 38. Rxb6 {[%clk 0:00:05]}  Rd2+ {[%clk 0:00:01]} 39. Kh3 {[%clk 0:00:04]}  Rd3+ {[%clk 0:00:01]} 40. Kh2 {[%clk 0:00:05]}  Rd2+ {[%clk 0:00:01]} 41. Kh1 {[%clk 0:00:05]}  Rh5+ {[%clk 0:00:01]} 42. Kg1 {[%clk 0:00:05]}  Rg5+ {[%clk 0:00:02]} 43. Kf1 {[%clk 0:00:06]}  Rd8 {[%clk 0:00:02]} 44. Rc6 {[%clk 0:00:05]}  Rh5 {[%clk 0:00:02]} 45. Rc8 {[%clk 0:00:05]}  Rxc8 {[%clk 0:00:02]} 46. Nxc8 {[%clk 0:00:05]}  Rxf5+ {[%clk 0:00:02]} 47. Ke2 {[%clk 0:00:05]}  Rg5 {[%clk 0:00:02]} 48. Nd6 {[%clk 0:00:04]}  Re5+ {[%clk 0:00:01]} 49. Kd2 {[%clk 0:00:04]}  Rd5+ {[%clk 0:00:01]} 50. Kc3 {[%clk 0:00:04]}  Rxd6 {[%clk 0:00:02]} 51. a4 {[%clk 0:00:05]}  Ra6 {[%clk 0:00:02]} 52. Ra1 {[%clk 0:00:04]}  Ke7 {[%clk 0:00:03]} 53. Kc4 {[%clk 0:00:04]}  f5 {[%clk 0:00:03]} 54. Kxc5 {[%clk 0:00:05]}  Kf6 {[%clk 0:00:03]} 55. a5 {[%clk 0:00:05]}  Kxg6 {[%clk 0:00:02]} 56. Kb5 {[%clk 0:00:05]}  Ra8 {[%clk 0:00:03]} 57. a6 {[%clk 0:00:06]}  f4 {[%clk 0:00:03]} 58. Kb6 {[%clk 0:00:07]}  Kf5 {[%clk 0:00:03]} 59. Kb7 {[%clk 0:00:07]}  Rf8 {[%clk 0:00:02]} 60. a7 {[%clk 0:00:08]}  f3 {[%clk 0:00:02]} 61. a8=Q {[%clk 0:00:08]}  Rxa8 {[%clk 0:00:02]} 62. Rxa8 {[%clk 0:00:08]}  g5 {[%clk 0:00:02]} 63. Rf8+ {[%clk 0:00:09]}  Ke4 {[%clk 0:00:02]} 64. Kc6 {[%clk 0:00:09]}  g4 {[%clk 0:00:03]} 65. Re8+ {[%clk 0:00:10]}  Kf4 {[%clk 0:00:02]} 66. Kd5 {[%clk 0:00:10]}  g3 {[%clk 0:00:02]} 67. Rf8+ {[%clk 0:00:10]}  Ke3 {[%clk 0:00:02]} 68. Re8+ {[%clk 0:00:10]}  Kd3 {[%clk 0:00:02]} 69. Rg8 {[%clk 0:00:09]}  g2 {[%clk 0:00:02]} 70. Rg3 {[%clk 0:00:09]}  Ke3 {[%clk 0:00:02]} 71. Ke5 {[%clk 0:00:08]}  Kf2 {[%clk 0:00:02]} 72. Kf4 {[%clk 0:00:09]}  g1=Q {[%clk 0:00:02]} 73. Rxg1 {[%clk 0:00:09]}  Kxg1 {[%clk 0:00:03]} 74. Kxf3 {[%clk 0:00:09]} 1/2-1/2


[Site "https://www.chess.com"]

[Event "Titled Tuesday Blitz May 9 Early 2023"]
[White "Matlakov, Maxim"]
[Black "Tasev, Dejan"]
[WhiteFideId "4168003"]
[BlackFideId "936618"]
[WhiteElo "2666"]
[BlackElo "2244"]
[Result "0-1"]
[Round "02"]
[TimeControl "180+2"]
[Date "2023.05.09"]
[WhiteClock "0:00:03"]
[BlackClock "0:00:04"]

1. d4 {[%clk 0:03:00]}  Nf6 {[%clk 0:02:59]} 2. Nf3 {[%clk 0:03:01]}  e6 {[%clk 0:02:59]} 3. c3 {[%clk 0:03:00]}  b6 {[%clk 0:02:59]} 4. Bg5 {[%clk 0:02:59]}  Bb7 {[%clk 0:02:59]} 5. Nbd2 {[%clk 0:02:59]}  h6 {[%clk 0:02:59]} 6. Bxf6 {[%clk 0:02:59]}  Qxf6 {[%clk 0:02:58]} 7. e4 {[%clk 0:03:00]}  d6 {[%clk 0:02:59]} 8. Bb5+ {[%clk 0:02:59]}  c6 {[%clk 0:02:58]} 9. Bd3 {[%clk 0:02:59]}  Nd7 {[%clk 0:02:58]} 10. Qe2 {[%clk 0:02:59]}  a6 {[%clk 0:02:59]} 11. O-O-O {[%clk 0:02:56]}  Qe7 {[%clk 0:02:58]} 12. Kb1 {[%clk 0:02:56]}  g5 {[%clk 0:02:57]} 13. h4 {[%clk 0:02:51]}  g4 {[%clk 0:02:56]} 14. Ne1 {[%clk 0:02:49]}  h5 {[%clk 0:02:56]} 15. Nc2 {[%clk 0:02:50]}  Bg7 {[%clk 0:02:55]} 16. Nc4 {[%clk 0:02:49]}  d5 {[%clk 0:02:50]} 17. Nd2 {[%clk 0:02:42]}  b5 {[%clk 0:02:45]} 18. f3 {[%clk 0:02:40]}  a5 {[%clk 0:02:39]} 19. fxg4 {[%clk 0:02:38]}  hxg4 {[%clk 0:02:39]} 20. Qxg4 {[%clk 0:02:38]}  Bh6 {[%clk 0:02:34]} 21. exd5 {[%clk 0:02:37]}  Nf6 {[%clk 0:02:24]} 22. Qf3 {[%clk 0:02:27]}  Nxd5 {[%clk 0:02:22]} 23. Ne4 {[%clk 0:02:26]}  b4 {[%clk 0:02:09]} 24. c4 {[%clk 0:02:26]}  b3 {[%clk 0:01:57]} 25. axb3 {[%clk 0:02:17]}  Nb4 {[%clk 0:01:57]} 26. Nc5 {[%clk 0:02:16]}  O-O-O {[%clk 0:01:39]} 27. Nxb4 {[%clk 0:02:14]}  axb4 {[%clk 0:01:38]} 28. Be4 {[%clk 0:02:14]}  Rxd4 {[%clk 0:01:24]} 29. Rxd4 {[%clk 0:02:03]}  Qxc5 {[%clk 0:01:23]} 30. Rhd1 {[%clk 0:02:04]}  f5 {[%clk 0:01:15]} 31. Bc2 {[%clk 0:01:58]}  Bg7 {[%clk 0:01:11]} 32. Rd7 {[%clk 0:01:44]}  Qe5 {[%clk 0:01:01]} 33. Rxg7 {[%clk 0:01:44]}  Qxg7 {[%clk 0:01:00]} 34. g3 {[%clk 0:01:41]}  Rg8 {[%clk 0:00:53]} 35. Qe3 {[%clk 0:01:40]}  Qf6 {[%clk 0:00:46]} 36. h5 {[%clk 0:01:36]}  Kc7 {[%clk 0:00:29]} 37. c5 {[%clk 0:01:30]}  Bc8 {[%clk 0:00:24]} 38. Qf4+ {[%clk 0:01:28]}  e5 {[%clk 0:00:21]} 39. Qxb4 {[%clk 0:01:29]}  Bb7 {[%clk 0:00:20]} 40. Rd6 {[%clk 0:01:24]}  Qg5 {[%clk 0:00:17]} 41. Qb6+ {[%clk 0:01:21]}  Kc8 {[%clk 0:00:17]} 42. Bd3 {[%clk 0:01:12]}  f4 {[%clk 0:00:14]} 43. Ba6 {[%clk 0:01:12]}  Bxa6 {[%clk 0:00:12]} 44. Rxc6+ {[%clk 0:01:10]}  Kd7 {[%clk 0:00:12]} 45. Rc7+ {[%clk 0:01:08]}  Ke8 {[%clk 0:00:11]} 46. Qb8+ {[%clk 0:01:09]}  Qd8 {[%clk 0:00:11]} 47. Qb6 {[%clk 0:01:03]}  Bd3+ {[%clk 0:00:10]} 48. Kc1 {[%clk 0:01:02]}  Bf5 {[%clk 0:00:06]} 49. Qc6+ {[%clk 0:00:56]}  Kf8 {[%clk 0:00:06]} 50. Qh6+ {[%clk 0:00:55]}  Ke8 {[%clk 0:00:06]} 51. g4 {[%clk 0:00:39]}  Bxg4 {[%clk 0:00:05]} 52. Qc6+ {[%clk 0:00:37]}  Bd7 {[%clk 0:00:04]} 53. Qe6+ {[%clk 0:00:03]}  Bxe6 {[%clk 0:00:04]} 0-1


[Site "https://www.chess.com"]

[Event "Titled Tuesday Blitz May 9 Early 2023"]
[White "Aggelis, Nikolaos"]
[Black "Hakobyan, Aram"]
[WhiteFideId "4213220"]
[BlackFideId "13306677"]
[WhiteElo "2189"]
[BlackElo "2584"]
[Result "0-1"]
[Round "02"]
[TimeControl "180+2"]
[Date "2023.05.09"]
[WhiteClock "0:00:17"]
[BlackClock "0:00:28"]

1. c4 {[%clk 0:02:56]}  g6 {[%clk 0:02:59]} 2. g3 {[%clk 0:02:54]}  Bg7 {[%clk 0:03:00]} 3. Bg2 {[%clk 0:02:54]}  Nc6 {[%clk 0:03:01]} 4. Nf3 {[%clk 0:02:53]}  Nf6 {[%clk 0:03:01]} 5. b3 {[%clk 0:02:47]}  Ne4 {[%clk 0:03:00]} 6. d4 {[%clk 0:02:47]}  d5 {[%clk 0:03:00]} 7. Bb2 {[%clk 0:02:36]}  dxc4 {[%clk 0:02:42]} 8. bxc4 {[%clk 0:02:37]}  Bg4 {[%clk 0:02:42]} 9. e3 {[%clk 0:02:30]}  Ng5 {[%clk 0:02:27]} 10. h4 {[%clk 0:02:23]}  Nxf3+ {[%clk 0:02:26]} 11. Bxf3 {[%clk 0:02:24]}  Bxf3 {[%clk 0:02:27]} 12. Qxf3 {[%clk 0:02:23]}  O-O {[%clk 0:02:28]} 13. Nd2 {[%clk 0:02:15]}  e5 {[%clk 0:02:26]} 14. d5 {[%clk 0:02:08]}  e4 {[%clk 0:02:22]} 15. Nxe4 {[%clk 0:02:04]}  Bxb2 {[%clk 0:02:20]} 16. Rb1 {[%clk 0:02:05]}  Ne5 {[%clk 0:02:08]} 17. Qe2 {[%clk 0:01:59]}  Ba3 {[%clk 0:02:07]} 18. f4 {[%clk 0:01:52]}  Nd7 {[%clk 0:02:01]} 19. h5 {[%clk 0:01:49]}  Qe7 {[%clk 0:01:51]} 20. Ng5 {[%clk 0:01:28]}  Rfe8 {[%clk 0:01:37]} 21. Rb3 {[%clk 0:01:26]}  Nf8 {[%clk 0:01:07]} 22. hxg6 {[%clk 0:01:21]}  fxg6 {[%clk 0:01:05]} 23. e4 {[%clk 0:01:08]}  Bc5 {[%clk 0:00:59]} 24. e5 {[%clk 0:01:05]}  c6 {[%clk 0:00:53]} 25. Ne4 {[%clk 0:01:04]}  cxd5 {[%clk 0:00:43]} 26. Nf6+ {[%clk 0:01:03]}  Qxf6 {[%clk 0:00:43]} 27. exf6 {[%clk 0:01:03]}  Rxe2+ {[%clk 0:00:40]} 28. Kxe2 {[%clk 0:01:04]}  Re8+ {[%clk 0:00:36]} 29. Kd3 {[%clk 0:00:51]}  dxc4+ {[%clk 0:00:36]} 30. Kxc4 {[%clk 0:00:51]}  b6 {[%clk 0:00:37]} 31. Kd5 {[%clk 0:00:35]}  Kf7 {[%clk 0:00:35]} 32. a4 {[%clk 0:00:32]}  Kxf6 {[%clk 0:00:34]} 33. a5 {[%clk 0:00:32]}  h5 {[%clk 0:00:34]} 34. axb6 {[%clk 0:00:32]}  axb6 {[%clk 0:00:34]} 35. Ra1 {[%clk 0:00:21]}  Rd8+ {[%clk 0:00:31]} 36. Kc6 {[%clk 0:00:21]}  Ne6 {[%clk 0:00:31]} 37. Ra7 {[%clk 0:00:20]}  Nd4+ {[%clk 0:00:28]} 38. Kc7 {[%clk 0:00:20]}  Re8 {[%clk 0:00:26]} 39. Rd3 {[%clk 0:00:19]}  Re7+ {[%clk 0:00:27]} 40. Kb8 {[%clk 0:00:19]}  Nc6+ {[%clk 0:00:27]} 41. Kc8 {[%clk 0:00:17]}  Nxa7+ {[%clk 0:00:28]} 0-1


[Site "https://www.chess.com"]